fUSD/lending_fUSD_20240329
["ID","MTS","AMOUNT","RATE_DAILY","PERIOD"]
[320971770,1711725062200,-456.52,0.00051232,120]
[320971771,1711725062209,-686.24,0.00051232,120]
[320971772,1711725062218,-259.24945,0.00051232,120]
[320971773,1711725062227,-151.0,0.00051232,120]
[320971774,1711725062236,-656.0,0.00051232,120]
[320971775,1711725062246,-259.24945,0.00051232,120]
[320971776,1711725062255,-151.0,0.00051232,120]
[320971777,1711725062265,-151.0,0.00051232,120]
[320971778,1711725062274,-1965.79,0.00051232,120]
[320971779,1711725062284,-500.0,0.00051232,120]
[320971780,1711725062293,-1009.79,0.00051232,120]
[320971781,1711725062305,-500.0,0.00051232,120]
[320971782,1711725062314,-1502.83,0.00051232,120]
[320971783,1711725062324,-716.55,0.00051232,120]
[320971784,1711725062333,-951.9,0.00051232,120]
[320971785,1711725062342,-151.0,0.00051232,120]
[320971786,1711725062352,-579.39,0.00051232,120]
[320971787,1711725062361,-500.0,0.00051232,120]
[320971788,1711725062371,-151.0,0.00051232,120]
[320971789,1711725062380,-588.56,0.00051232,120]
[320971790,1711725062390,-151.0,0.00051232,120]
[320971791,1711725062399,-1875.29,0.00051232,120]
[320971792,1711725062409,-2456.85,0.00051232,120]
[320971793,1711725062419,-500.0,0.00051232,120]
[320971794,1711725062429,-500.0,0.00051232,120]
[320971795,1711725062439,-1392.05,0.00051232,120]
[320971796,1711725062449,-508.61,0.00051232,120]
[320971797,1711725062459,-676.92,0.00051232,120]
[320971798,1711725062468,-1162.06,0.00051232,120]
[320971799,1711725062477,-500.0,0.00051232,120]
[320971800,1711725062487,-500.0,0.00051232,120]
[320971801,1711725062497,-530.42,0.00051232,120]
[320971802,1711725062506,-909.52,0.00051232,120]
[320971803,1711725062516,-2245.64,0.00051232,120]
[320971804,1711725062525,-561.59,0.00051232,120]
[320971805,1711725062534,-704.18,0.00051232,120]
[320971806,1711725062545,-500.0,0.00051232,120]
[320971807,1711725062556,-1923.68,0.00051232,120]
[320971808,1711725062566,-964.16,0.00051232,120]
[320971809,1711725062575,-816.71,0.00051232,120]
[320971810,1711725062585,-2964.94,0.00051232,120]
[320971811,1711725062595,-198.64,0.00051232,120]
[320971812,1711725062604,-549.02,0.00051232,120]
[320971813,1711725062613,-566.67,0.00051232,120]
[320971814,1711725062623,-500.0,0.00051232,120]
[320971815,1711725062632,-985.65,0.00051232,120]
[320971816,1711725062641,-500.0,0.00051232,120]
[320971817,1711725062650,-1183.52,0.00051232,120]
[320971818,1711725062659,-500.0,0.00051232,120]
[320971819,1711725062669,-523.71,0.00051232,120]
[320971820,1711725062679,-500.0,0.00051232,120]
[320971821,1711725062688,-1007.25,0.00051232,120]
[320971822,1711725062698,-3361.47,0.00051232,120]
[320971823,1711725062709,-500.0,0.00051232,120]
[320971824,1711725062718,-500.0,0.00051232,120]
[320971825,1711725062728,-2654.75,0.00051232,120]
[320971826,1711725062737,-269.82242356,0.00051232,120]
[320971827,1711725062747,-699.89,0.00051232,120]
[320971828,1711725062756,-824.05,0.00051232,120]
[320971829,1711725062766,-500.0,0.00051232,120]
[320971830,1711725062775,-500.0,0.00051232,120]
[320971831,1711725062784,-540.59,0.00051232,120]
[320971832,1711725062794,-500.0,0.00051232,120]
[320971833,1711725062808,-156.7,0.000513,7]
[320971834,1711725062817,-151.0,0.00051425,120]
[320971835,1711725062826,-253.0,0.00051475,7]
[320971836,1711725062835,-152.34,0.000515,7]
[320971837,1711725062845,-152.34,0.000515,7]
[320971838,1711725062854,-152.34,0.000515,7]
[320971839,1711725062863,-152.34,0.000515,7]
[320971840,1711725062873,-152.34,0.000515,7]
[320971841,1711725062881,-152.34,0.000515,7]
[320971842,1711725062891,-152.34,0.000515,7]
[320971843,1711725062901,-152.34,0.000515,7]
[320971844,1711725062910,-152.34,0.000515,7]
[320971845,1711725062919,-151.0,0.000515,120]
[320971846,1711725062928,-151.0,0.000515,120]
[320971847,1711725062937,-534.650469,0.000515,120]
[320971848,1711725062947,-151.0,0.000515,120]
[320971849,1711725062956,-534.650469,0.000515,120]
[320971850,1711725062965,-158.935207,0.000515,120]
[320971851,1711725062975,-151.0,0.000515,120]
[320971852,1711725062984,-151.0,0.000515,120]
[320971853,1711725062994,-7545.1,0.000515,7]
[320971854,1711725063003,-7545.1,0.000515,7]
[320971855,1711725063013,-7545.1,0.000515,7]
[320971856,1711725063023,-7545.1,0.000515,7]
[320971857,1711725063038,-7545.1,0.000515,7]
[320971858,1711725063047,-7545.1,0.000515,7]
[320971859,1711725063059,-7545.1,0.000515,7]
[320971860,1711725063069,-151.0,0.000515,120]
[320971861,1711725063078,-7545.1,0.000515,7]
[320971862,1711725063087,-7545.1,0.000515,7]
[320971863,1711725063097,-151.0,0.000515,45]
[320971864,1711725063106,-7545.1,0.000515,7]
[320971865,1711725063116,-7545.1,0.000515,7]
[320971866,1711725063125,-7545.1,0.000515,7]
[320971867,1711725063135,-7545.1,0.000515,7]
[320971868,1711725063145,-7545.1,0.000515,7]
[320971869,1711725063155,-7545.1,0.000515,7]
[320971870,1711725063165,-7545.1,0.000515,7]
[320971871,1711725063175,-7545.1,0.000515,7]
[320971872,1711725063184,-7545.1,0.000515,7]
[320971873,1711725063193,-7545.1,0.000515,7]
[320971874,1711725063202,-7545.1,0.000515,7]
[320971875,1711725063212,-151.0,0.000515,7]
[320971876,1711725063221,-151.0,0.000515,120]
[320971877,1711725063230,-156.224541,0.000515,120]
[320971878,1711725063239,-151.0,0.000515,120]
[320971879,1711725063248,-152.094444,0.000515,21]
[320971880,1711725063257,-500.0,0.00051506,120]
[320971881,1711725063266,-500.0,0.00051506,120]
[320971882,1711725063275,-581.76,0.00051506,120]
[320971883,1711725063284,-500.0,0.00051506,120]
[320971884,1711725063293,-500.0,0.00051506,120]
[320971885,1711725063303,-500.0,0.00051506,120]
[320971886,1711725063312,-500.0,0.00051506,120]
[320971887,1711725063321,-500.0,0.00051506,120]
[320971888,1711725063330,-500.0,0.00051506,120]
[320971889,1711725063339,-500.0,0.00051506,120]
[320971890,1711725063348,-500.0,0.00051506,120]
[320971891,1711725063357,-500.0,0.00051506,120]
[320971892,1711725063366,-500.0,0.00051506,120]
[320971893,1711725063375,-500.0,0.00051506,120]
[320971894,1711725063386,-4432.67,0.00051506,120]
[320971895,1711725063395,-500.0,0.00051506,120]
[320971896,1711725063405,-500.0,0.00051506,120]
[320971897,1711725063415,-500.0,0.00051506,120]
[320971898,1711725063425,-1344.8,0.00051506,120]
[320971899,1711725063434,-251.991956,0.00051506,120]
[320971900,1711725063443,-251.991956,0.00051506,120]
[320971901,1711725063452,-500.0,0.00051506,120]
[320971902,1711725063461,-500.0,0.00051506,120]
[320971903,1711725063470,-540.96,0.00051506,120]
[320971904,1711725063480,-742.176725,0.00051506,120]
[320971905,1711725063489,-4526.07,0.00051506,120]
[320971906,1711725063498,-3423.87,0.00051506,120]
[320971907,1711725063507,-151.0,0.00051506,120]
[320971908,1711725063517,-742.176725,0.00051506,120]
[320971909,1711725063526,-500.0,0.00051506,120]
[320971910,1711725063535,-500.0,0.00051506,120]
[320971911,1711725063544,-500.0,0.00051506,120]
[320971912,1711725063555,-151.0,0.00051506,120]
[320971913,1711725063565,-500.0,0.00051506,120]
[320971914,1711725063574,-151.0,0.00051506,120]
[320971915,1711725063583,-500.0,0.00051506,120]
[320971916,1711725063592,-151.0,0.00051506,120]
[320971917,1711725063601,-568.92,0.00051506,120]
[320971918,1711725063610,-736.71,0.00051506,120]
[320971919,1711725063621,-500.0,0.00051506,120]
[320971920,1711725063630,-500.0,0.00051506,120]
[320971921,1711725063639,-500.0,0.00051506,120]
[320971922,1711725063648,-500.0,0.00051506,120]
[320971923,1711725063657,-784.08,0.00051506,21]
[320971924,1711725063666,-1932.64,0.00051506,120]
[320971925,1711725063676,-587.66,0.00051506,120]
[320971926,1711725063685,-616.86,0.00051506,120]
[320971927,1711725063695,-500.0,0.00051506,120]
[320971928,1711725063704,-213.85,0.00051506,120]
[320971929,1711725063713,-4065.91,0.00051506,120]
[320971930,1711725063724,-1193.78,0.00051506,120]
[320971931,1711725063734,-500.0,0.00051506,120]
[320971932,1711725063743,-500.0,0.00051506,120]
[320971933,1711725063753,-500.0,0.00051506,120]
[320971934,1711725063762,-1940.59,0.00051506,120]
[320971935,1711725063772,-500.0,0.00051506,120]
[320971936,1711725063781,-951.41,0.00051506,120]
[320971937,1711725063790,-500.0,0.00051506,120]
[320971938,1711725063800,-500.0,0.00051506,120]
[320971939,1711725063809,-500.0,0.00051506,120]
[320971940,1711725063823,-500.0,0.00051506,120]
[320971941,1711725063833,-500.05,0.00051506,120]
[320971942,1711725063842,-853.25,0.00051506,120]
[320971943,1711725063852,-367.48,0.00051506,120]
[320971944,1711725063862,-500.0,0.00051506,120]
[320971945,1711725063871,-570.44,0.00051506,120]
[320971946,1711725063881,-184.70875304,0.00051506,120]
[320971947,1711725063890,-500.0,0.00051506,120]
[320971948,1711725063901,-869.21,0.00051506,120]
[320971949,1711725063909,-500.0,0.00051506,120]
[320971950,1711725063918,-500.0,0.00051506,120]
[320971951,1711725063927,-500.0,0.00051506,120]
[320971952,1711725063937,-1369.55,0.00051506,120]
[320971953,1711725063946,-686.24,0.00051506,120]
[320971954,1711725063955,-656.0,0.00051506,120]
[320971955,1711725063964,-1965.79,0.00051506,120]
[320971956,1711725063973,-500.0,0.00051506,120]
[320971957,1711725063981,-1009.79,0.00051506,120]
[320971958,1711725063992,-500.0,0.00051506,120]
[320971959,1711725064000,-1502.83,0.00051506,120]
[320971960,1711725064010,-716.55,0.00051506,120]
[320971961,1711725064019,-951.9,0.00051506,120]
[320971962,1711725064028,-579.39,0.00051506,120]
[320971963,1711725064037,-500.0,0.00051506,120]
[320971964,1711725064046,-588.56,0.00051506,120]
[320971965,1711725064057,-1875.29,0.00051506,120]
[320971966,1711725064066,-2456.85,0.00051506,120]
[320971967,1711725064076,-500.0,0.00051506,120]
[320971968,1711725064085,-500.0,0.00051506,120]
[320971969,1711725064094,-1392.05,0.00051506,120]
[320971970,1711725064104,-508.61,0.00051506,120]
[320971971,1711725064113,-676.92,0.00051506,120]
[320971972,1711725064122,-1162.06,0.00051506,120]
[320971973,1711725064132,-500.0,0.00051506,120]
[320971974,1711725064141,-500.0,0.00051506,120]
[320971975,1711725064153,-530.42,0.00051506,120]
[320971976,1711725064162,-909.52,0.00051506,120]
[320971977,1711725064173,-2245.64,0.00051506,120]
[320971978,1711725064183,-561.59,0.00051506,120]
[320971979,1711725064192,-704.18,0.00051506,120]
[320971980,1711725064202,-500.0,0.00051506,120]
[320971981,1711725064211,-1923.68,0.00051506,120]
[320971982,1711725064220,-964.16,0.00051506,120]
[320971983,1711725064229,-2964.94,0.00051506,120]
[320971984,1711725064238,-816.71,0.00051506,120]
[320971985,1711725064248,-549.02,0.00051506,120]
[320971986,1711725064257,-566.67,0.00051506,120]
[320971987,1711725064267,-500.0,0.00051506,120]
[320971988,1711725064277,-985.65,0.00051506,120]
[320971989,1711725064286,-500.0,0.00051506,120]
[320971990,1711725064296,-1183.52,0.00051506,120]
[320971991,1711725064307,-500.0,0.00051506,120]
[320971992,1711725064316,-538.76,0.00051506,120]
[320971993,1711725064326,-523.71,0.00051506,120]
[320971994,1711725064335,-1007.25,0.00051506,120]
[320971995,1711725064344,-3361.47,0.00051506,120]
[320971996,1711725064353,-500.0,0.00051506,120]
[320971997,1711725064362,-500.0,0.00051506,120]
[320971998,1711725064371,-2654.75,0.00051506,120]
[320971999,1711725064381,-699.89,0.00051506,120]
[320972000,1711725064391,-824.05,0.00051506,120]
[320972001,1711725064400,-500.0,0.00051506,120]
[320972002,1711725064409,-500.0,0.00051506,120]
[320972003,1711725064418,-540.59,0.00051506,120]
[320972004,1711725064427,-500.0,0.00051506,120]
[320972005,1711725064437,-150.83371738,0.00051567,50]
[320972006,1711725064446,-209.56666667,0.00051616,120]
[320972007,1711725064455,-387.73096268,0.00051643,2]
[320972008,1711725064464,-500.0,0.0005178,120]
[320972009,1711725064473,-500.0,0.0005178,120]
[320972010,1711725064483,-581.76,0.0005178,120]
[320972011,1711725064492,-500.0,0.0005178,120]
[320972012,1711725064503,-500.0,0.0005178,120]
[320972013,1711725064513,-500.0,0.0005178,120]
[320972014,1711725064522,-500.0,0.0005178,120]
[320972015,1711725064531,-500.0,0.0005178,120]
[320972016,1711725064540,-500.0,0.0005178,120]
[320972017,1711725064549,-500.0,0.0005178,120]
[320972018,1711725064560,-500.0,0.0005178,120]
[320972019,1711725064569,-500.0,0.0005178,120]
[320972020,1711725064579,-500.0,0.0005178,120]
[320972021,1711725064587,-500.0,0.0005178,120]
[320972022,1711725064596,-4432.67,0.0005178,120]
[320972023,1711725064605,-500.0,0.0005178,120]
[320972024,1711725064614,-500.0,0.0005178,120]
[320972025,1711725064623,-500.0,0.0005178,120]
[320972026,1711725064632,-1344.8,0.0005178,120]
[320972027,1711725064641,-500.0,0.0005178,120]
[320972028,1711725064649,-500.0,0.0005178,120]
[320972029,1711725064658,-540.96,0.0005178,120]
[320972030,1711725064667,-4526.07,0.0005178,120]
[320972031,1711725064676,-3423.87,0.0005178,120]
[320972032,1711725064685,-500.0,0.0005178,120]
[320972033,1711725064810,-500.0,0.0005178,120]
[320972034,1711725064833,-500.0,0.0005178,120]
[320972035,1711725064842,-500.0,0.0005178,120]
[320972036,1711725064851,-500.0,0.0005178,120]
[320972037,1711725064861,-736.71,0.0005178,120]
[320972038,1711725064870,-500.0,0.0005178,120]
[320972039,1711725064879,-500.0,0.0005178,120]
[320972040,1711725064889,-500.0,0.0005178,120]
[320972041,1711725064899,-500.0,0.0005178,120]
[320972042,1711725064908,-784.08,0.0005178,21]
[320972043,1711725064917,-1932.64,0.0005178,120]
[320972044,1711725064927,-587.66,0.0005178,120]
[320972045,1711725064936,-616.86,0.0005178,120]
[320972046,1711725064945,-500.0,0.0005178,120]
[320972047,1711725064954,-4065.91,0.0005178,120]
[320972048,1711725064963,-1193.78,0.0005178,120]
[320972049,1711725064972,-500.0,0.0005178,120]
[320972050,1711725064981,-500.0,0.0005178,120]
[320972051,1711725064990,-500.0,0.0005178,120]
[320972052,1711725064998,-1940.59,0.0005178,120]
[320972053,1711725065008,-500.0,0.0005178,120]
[320972054,1711725065017,-951.41,0.0005178,120]
[320972055,1711725065026,-500.0,0.0005178,120]
[320972056,1711725065036,-500.0,0.0005178,120]
[320972057,1711725065046,-500.0,0.0005178,120]
[320972058,1711725065057,-500.0,0.0005178,120]
[320972059,1711725065067,-500.05,0.0005178,120]
[320972060,1711725065077,-853.25,0.0005178,120]
[320972061,1711725065088,-500.0,0.0005178,120]
[320972062,1711725065098,-570.44,0.0005178,120]
[320972063,1711725065109,-500.0,0.0005178,120]
[320972064,1711725065118,-869.21,0.0005178,120]
[320972065,1711725065128,-500.0,0.0005178,120]
[320972066,1711725065139,-500.0,0.0005178,120]
[320972067,1711725065149,-500.0,0.0005178,120]
[320972068,1711725065159,-1369.55,0.0005178,120]
[320972069,1711725065169,-686.24,0.0005178,120]
[320972070,1711725065179,-656.0,0.0005178,120]
[320972071,1711725065188,-1965.79,0.0005178,120]
[320972072,1711725065198,-500.0,0.0005178,120]
[320972073,1711725065208,-1009.79,0.0005178,120]
[320972074,1711725065218,-500.0,0.0005178,120]
[320972075,1711725065228,-1502.83,0.0005178,120]
[320972076,1711725065238,-716.55,0.0005178,120]
[320972077,1711725065247,-951.9,0.0005178,120]
[320972078,1711725065256,-500.0,0.0005178,120]
[320972079,1711725065266,-579.39,0.0005178,120]
[320972080,1711725065275,-588.56,0.0005178,120]
[320972081,1711725065286,-1875.29,0.0005178,120]
[320972082,1711725065296,-2456.85,0.0005178,120]
[320972083,1711725065305,-500.0,0.0005178,120]
[320972084,1711725065315,-500.0,0.0005178,120]
[320972085,1711725065325,-1392.05,0.0005178,120]
[320972086,1711725065336,-508.61,0.0005178,120]
[320972087,1711725065346,-676.92,0.0005178,120]
[320972088,1711725065355,-1162.06,0.0005178,120]
[320972089,1711725065365,-500.0,0.0005178,120]
[320972090,1711725065375,-500.0,0.0005178,120]
[320972091,1711725065385,-530.42,0.0005178,120]
[320972092,1711725065394,-909.52,0.0005178,120]
[320972093,1711725065404,-2245.64,0.0005178,120]
[320972094,1711725065414,-561.59,0.0005178,120]
[320972095,1711725065424,-704.18,0.0005178,120]
[320972096,1711725065433,-500.0,0.0005178,120]
[320972097,1711725065443,-1923.68,0.0005178,120]
[320972098,1711725065452,-964.16,0.0005178,120]
[320972099,1711725065461,-2964.94,0.0005178,120]
[320972100,1711725065471,-816.71,0.0005178,120]
[320972101,1711725065480,-549.02,0.0005178,120]
[320972102,1711725065496,-566.67,0.0005178,120]
[320972103,1711725065506,-500.0,0.0005178,120]
[320972104,1711725065515,-985.65,0.0005178,120]
[320972105,1711725065525,-500.0,0.0005178,120]
[320972106,1711725065535,-1183.52,0.0005178,120]
[320972107,1711725065544,-500.0,0.0005178,120]
[320972108,1711725065555,-523.71,0.0005178,120]
[320972109,1711725065564,-1007.25,0.0005178,120]
[320972110,1711725065574,-3361.47,0.0005178,120]
[320972111,1711725065584,-500.0,0.0005178,120]
[320972112,1711725065593,-500.0,0.0005178,120]
[320972113,1711725065602,-2654.75,0.0005178,120]
[320972114,1711725065612,-699.89,0.0005178,120]
[320972115,1711725065621,-824.05,0.0005178,120]
[320972116,1711725065631,-224.89,0.0005178,120]
[320972117,1711725065641,-500.0,0.0005178,120]
[320972118,1711725065650,-540.59,0.0005178,120]
[320972119,1711725065660,-500.0,0.0005178,120]
[320972120,1711725065672,-3049116.55528152,0.000518,2]
[320972121,1711725065684,-151.0,0.000518,120]
[320972122,1711725065694,-151.0,0.000518,120]
[320972123,1711725065707,-151.0,0.000518,120]
[320972124,1711725065717,-158.0,0.000518,7]
[320972125,1711725065728,-151.0,0.000518,120]
[320972126,1711725065738,-155.225279,0.000518,120]
[320972127,1711725065749,-151.0,0.000518,120]
[320972128,1711725065761,-228.445746,0.000518,120]
[320972129,1711725065773,-151.0,0.000518,120]
[320972130,1711725065785,-151.0,0.000518,120]
[320972131,1711725065796,-151.0,0.000518,120]
[320972132,1711725065811,-229.217968,0.000518,120]
[320972133,1711725065822,-152.898674,0.000518,120]
[320972134,1711725065832,-151.0,0.000518,120]
[320972135,1711725065843,-151.0,0.000518,120]
[320972136,1711725065853,-151.0,0.000518,120]
[320972137,1711725065863,-154.30408,0.000518,7]
[320972138,1711725065873,-151.0,0.000518,120]
[320972139,1711725065884,-151.0,0.000518,120]
[320972140,1711725065895,-288.320642,0.000518,30]
[320972141,1711725065906,-288.320642,0.000518,30]
[320972142,1711725065916,-151.0,0.000518,120]
[320972143,1711725065926,-151.0,0.000518,120]
[320972144,1711725065936,-151.0,0.000518,120]
[320972145,1711725065947,-151.0,0.000518,120]
[320972146,1711725065957,-151.0,0.000518,120]
[320972147,1711725065967,-151.0,0.000518,120]
[320972148,1711725065977,-152.830462,0.000518,120]
[320972149,1711725065987,-151.0,0.000518,120]
[320972150,1711725065996,-357.141822,0.000518,120]
[320972151,1711725066006,-357.141822,0.000518,120]
[320972152,1711725066016,-641.50841,0.000518,120]
[320972153,1711725066027,-641.50841,0.000518,120]
[320972154,1711725066037,-151.0,0.000518,120]
[320972155,1711725066047,-322.558449,0.000518,120]
[320972156,1711725066058,-151.0,0.000518,120]
[320972157,1711725066068,-151.0,0.000518,120]
[320972158,1711725066078,-151.0,0.000518,7]
[320972159,1711725066088,-322.558449,0.000518,120]
[320972160,1711725066098,-414.71918,0.000518,120]
[320972161,1711725066108,-414.71918,0.000518,120]
[320972162,1711725066117,-151.0,0.000518,120]
[320972163,1711725066127,-649.641441,0.000518,120]
[320972164,1711725066137,-649.641441,0.000518,120]
[320972165,1711725066147,-253.290099,0.000518,120]
[320972166,1711725066157,-151.0,0.000518,7]
[320972167,1711725066167,-151.0,0.000518,7]
[320972168,1711725066176,-253.290099,0.000518,120]
[320972169,1711725066187,-365.473458,0.000518,60]
[320972170,1711725066197,-151.0,0.000518,120]
[320972171,1711725066207,-365.473458,0.000518,60]
[320972172,1711725066217,-151.0,0.000518,120]
[320972173,1711725066226,-151.0,0.000518,120]
[320972174,1711725066236,-151.0,0.000518,120]
[320972175,1711725066246,-151.0,0.000518,120]
[320972176,1711725066256,-151.0,0.000518,120]
[320972177,1711725066267,-151.0,0.000518,120]
[320972178,1711725066279,-238.356636,0.000518,120]
[320972179,1711725066289,-238.356636,0.000518,120]
[320972180,1711725066300,-151.0,0.000518,120]
[320972181,1711725066315,-151.0,0.000518,120]
[320972182,1711725066325,-151.0,0.000518,120]
[320972183,1711725066335,-151.0,0.000518,120]
[320972184,1711725066346,-151.0,0.000518,120]
[320972185,1711725066356,-151.0,0.000518,120]
[320972186,1711725066367,-151.0,0.000518,120]
[320972187,1711725066378,-155.738275,0.000518,120]
[320972188,1711725066389,-151.0,0.000518,120]
[320972189,1711725066401,-151.0,0.000518,120]
[320972190,1711725066412,-251.991956,0.000518,120]
[320972191,1711725066423,-251.991956,0.000518,120]
[320972192,1711725066433,-742.176725,0.000518,120]
[320972193,1711725066444,-151.0,0.000518,120]
[320972194,1711725066454,-742.176725,0.000518,120]
[320972195,1711725066465,-151.0,0.000518,120]
[320972196,1711725066476,-151.0,0.000518,120]
[320972197,1711725066486,-151.0,0.000518,120]
[320972198,1711725066497,-151.0,0.000518,120]
[320972199,1711725066508,-151.0,0.000518,120]
[320972200,1711725066519,-534.650469,0.000518,120]
[320972201,1711725066529,-151.0,0.000518,120]
[320972202,1711725066539,-534.650469,0.000518,120]
[320972203,1711725066550,-151.0,0.000518,120]
[320972204,1711725066564,-151.0,0.000518,120]
[320972205,1711725066573,-151.0,0.000518,120]
[320972206,1711725066584,-151.0,0.000518,45]
[320972207,1711725066594,-151.0,0.000518,7]
[320972208,1711725066604,-151.0,0.000518,120]
[320972209,1711725066614,-151.0,0.000518,120]
[320972210,1711725066623,-151.0,0.000518,120]
[320972211,1711725066634,-151.0,0.000518,120]
[320972212,1711725066644,-151.0,0.000518,120]
[320972213,1711725066654,-151.0,0.000518,120]
[320972214,1711725066664,-151.0,0.000518,120]
[320972215,1711725066674,-259.24945,0.000518,120]
[320972216,1711725066683,-259.24945,0.000518,120]
[320972217,1711725066693,-151.0,0.000518,120]
[320972218,1711725066703,-151.0,0.000518,120]
[320972219,1711725066712,-151.0,0.000518,120]
[320972220,1711725066723,-153.37579,0.000518,120]
[320972221,1711725066733,-151.0,0.000518,120]
[320972222,1711725066744,-151.0,0.000518,30]
[320972223,1711725066754,-151.0,0.000518,30]
[320972224,1711725066765,-752.817963,0.000518,120]
[320972225,1711725066775,-752.817963,0.000518,120]
[320972226,1711725066785,-265.352896,0.000518,120]
[320972227,1711725066796,-151.0,0.000518,120]
[320972228,1711725066814,-151.0,0.000518,120]
[320972229,1711725066824,-151.0,0.000518,120]
[320972230,1711725066834,-160.207309,0.000518,120]
[320972231,1711725066844,-187.544332,0.000518,30]
[320972232,1711725066856,-151.0,0.000518,120]
[320972233,1711725066872,-187.544332,0.000518,30]
[320972234,1711725066884,-235.480453,0.000518,120]
[320972235,1711725066894,-151.0,0.000518,14]
[320972236,1711725066905,-155.096706,0.00051823,60]
[320972237,1711725066916,-206.74,0.00051827,2]
[320972238,1711725066926,-261.85550189,0.00051839,91]
[320972239,1711725066936,-700.0,0.000519,18]
[320972240,1711725066946,-230.18,0.000519,7]
[320972241,1711725066957,-250.46578713,0.00051917,10]
[320972242,1711725066967,-150.0,0.00051939,10]
[320972243,1711725066977,-165.51225205,0.00051971,10]
[320972244,1711725066988,-158.62188234,0.00051977,10]
[320972245,1711725066998,-1408.51871603,0.00051992,10]
[320972246,1711725067009,-154.44633834,0.00051995,60]
[320972247,1711725067019,-10079.99109457,0.00052,90]
[320972248,1711725067030,-150.0,0.00052,2]
[320972249,1711725067040,-150.0,0.00052,2]
[320972250,1711725067050,-150.0,0.00052,2]
[320972251,1711725067062,-150.0,0.00052,2]
[320972252,1711725067071,-150.0,0.00052,2]
[320972253,1711725067081,-150.0,0.00052,2]
[320972254,1711725067090,-1499.05638372,0.00052,30]
[320972255,1711725067100,-10000.0,0.00052,120]
[320972256,1711725067110,-5000.0,0.00052,14]
[320972257,1711725067120,-2437.42170417,0.00052,4]
[320972258,1711725067131,-379.32515966,0.00052,120]
[320972259,1711725067141,-150.0,0.00052,2]
[320972260,1711725067152,-17598.0,0.00052,120]
[320972261,1711725067162,-500.0,0.00052054,120]
[320972262,1711725067172,-500.0,0.00052054,120]
[320972263,1711725067182,-581.76,0.00052054,120]
[320972264,1711725067192,-500.0,0.00052054,120]
[320972265,1711725067202,-500.0,0.00052054,120]
[320972266,1711725067212,-500.0,0.00052054,120]
[320972267,1711725067221,-500.0,0.00052054,120]
[320972268,1711725067231,-500.0,0.00052054,120]
[320972269,1711725067241,-500.0,0.00052054,120]